bitfinex/quotes_ETHUSD_20240729
["timestamp","ask_amount","ask_price","bid_price","bid_amount"]
[1722254008721,3.0,3384.9,3384.4,2.2812]
[1722254009057,3.67429935,3385.0,3384.4,2.2812]
[1722254009353,3.0,3385.0,3384.4,2.2812]
[1722254009552,2.3633,3385.1,3384.4,2.2812]
[1722254009848,2.36337,3385.0,3384.4,2.2812]
[1722254010355,2.36344,3384.9,3384.4,2.2812]
[1722254010557,2.36361,3384.7,3384.4,2.2812]
[1722254011226,2.36359,3384.7,3384.4,2.2812]
[1722254011817,2.36359,3384.7,3384.1,9.6525]
[1722254014653,2.36344,3384.9,3384.1,9.6525]
[1722254015354,2.36344,3384.9,3384.2,0.05908933]
[1722254016631,2.36351,3384.8,3384.2,0.05908933]
[1722254016835,2.36344,3384.9,3384.1,9.6525]
[1722254017039,2.36344,3384.9,3384.1,11.2111737]
[1722254017620,2.36355,3384.8,3384.1,11.2111737]
[1722254017864,2.36355,3384.8,3384.1,9.6525]
[1722254018460,2.36362,3384.7,3384.1,9.6525]
[1722254021573,2.36362,3384.7,3384.1,2.3625]
[1722254021574,2.36367,3384.6,3384.1,2.3625]
[1722254022323,2.36383,3384.4,3384.1,2.3625]
[1722254022537,2.600213,3384.4,3384.1,2.3625]
[1722254022782,2.36383,3384.4,3384.1,2.3625]
[1722254022979,4.72735,3384.6,3384.1,2.3625]
[1722254023165,2.36341,3385.0,3384.1,2.3625]
[1722254023480,2.36383,3384.4,3384.1,2.3625]
[1722254024686,2.36387,3384.3,3384.1,2.3625]
[1722254026147,2.36383,3384.4,3384.1,2.3625]
[1722254026755,2.36365,3384.6,3384.1,2.3625]
[1722254026997,2.36358,3384.7,3384.2,0.05909577]
[1722254027692,5.3635,3384.8,3384.2,0.05909577]
[1722254027839,2.3635,3384.8,3384.2,0.05909577]
[1722254028035,2.36358,3384.7,3384.2,0.05909577]
[1722254030502,2.36365,3384.6,3384.1,2.3625]
[1722254030802,2.36372,3384.5,3384.1,2.3625]
[1722254032063,2.36379,3384.4,3384.1,2.3625]
[1722254032300,2.3639,3384.3,3383.8,7.29]
[1722254032593,2.36397,3384.2,3383.8,9.6881]
[1722254033404,2.36397,3384.2,3383.8,2.3981]
[1722254033574,2.36399,3384.1,3383.8,2.3981]
[1722254034311,2.36416,3383.9,3383.5,0.00087]
[1722254036675,2.36416,3383.9,3383.4,10.7591]
[1722254036875,2.36416,3383.9,3383.4,3.4691]
[1722254037583,2.36399,3384.1,3383.6,1.071]
[1722254040121,2.36399,3384.1,3383.6,1.021]
[1722254044622,2.836777,3384.1,3383.6,1.021]
[1722254044846,0.472787,3384.1,3383.4,3.4691]
[1722254045127,2.36415,3383.9,3383.4,3.4691]
[1722254046093,2.36406,3384.0,3383.4,3.4691]
[1722254046619,5.36396,3384.2,3383.4,3.4691]
[1722254046776,2.36401,3384.1,3383.6,1.071]
[1722254047525,2.36407,3384.0,3383.6,1.071]
[1722254047674,2.36401,3384.1,3383.6,1.071]
[1722254048180,2.36407,3384.0,3383.6,1.071]
[1722254048690,2.36414,3383.9,3383.6,1.071]
[1722254049017,2.36414,3383.9,3383.4,2.3481]
[1722254049018,2.36414,3383.9,3383.4,3.4191]
[1722254050591,2.36414,3383.9,3383.4,3.3691]
[1722254050778,2.36421,3383.8,3383.4,3.3691]
[1722254051674,2.36432,3383.7,3383.0,7.24087]
[1722254051893,2.3642,3383.8,3383.3,1.071]
[1722254053013,2.3642,3383.8,3383.5,1.071]
[1722254054029,2.3643,3383.7,3383.4,2.4032]
[1722254054180,2.3643,3383.7,3383.3,1.071]
[1722254054181,2.36434,3383.6,3383.3,1.071]
[1722254054893,2.36434,3383.6,3383.1,2.4032]
[1722254055081,2.36449,3383.4,3383.1,2.4032]
[1722254055284,2.36449,3383.4,3383.0,7.24087]
[1722254055489,2.36449,3383.4,3383.0,10.70487]
[1722254055697,2.36443,3383.5,3383.0,10.70487]
[1722254055893,2.36437,3383.6,3383.0,9.63387]
[1722254056215,4.72908,3383.4,3383.0,9.63387]
[1722254056899,2.36455,3383.3,3383.0,9.63387]
[1722254057296,2.36446,3383.5,3383.0,10.70487]
[1722254058028,2.3913,3383.4,3383.0,7.24087]
[1722254058187,2.36467,3383.2,3383.0,7.24087]
[1722254058513,2.36478,3383.0,3382.5,8.4600795]
[1722254060042,2.36467,3383.2,3382.7,1.071]
[1722254060524,2.36467,3383.2,3382.9,1.071]
[1722254060690,2.36459,3383.3,3382.9,1.071]
[1722254060893,2.36469,3383.1,3382.7,1.071]
[1722254061554,2.36477,3383.0,3382.7,1.071]
[1722254064174,2.36458,3383.3,3382.7,1.071]
[1722254064378,2.3655,3383.2,3382.5,7.3890795]
[1722254064871,2.36488,3382.9,3382.5,7.3890795]
[1722254065677,2.36498,3382.7,3382.5,7.3890795]
[1722254067972,2.36474,3383.1,3382.6,2.32]
[1722254068173,2.3645,3383.4,3382.7,1.071]
[1722254068400,2.935689,3383.4,3382.7,1.071]
[1722254069061,2.36467,3383.2,3382.7,1.071]
[1722254070467,2.3645,3383.4,3382.8,0.05911549]
[1722254070668,5.2885,3383.5,3382.8,0.05911549]
[1722254070669,2.36455,3383.3,3382.8,0.05911549]
[1722254071164,2.36455,3383.3,3382.7,1.071]
[1722254072103,0.907125,3383.4,3382.6,2.32]
[1722254072267,2.36469,3383.1,3382.6,3.391]
[1722254073961,2.36469,3383.1,3382.6,2.32]
[1722254074161,2.36469,3383.1,3382.5,7.3890795]
[1722254074162,0.5636365,3383.1,3382.5,7.3890795]
[1722254074397,1.071,3383.3,3382.5,7.3890795]
[1722254074605,2.36479,3383.0,3382.5,7.3890795]
[1722254075204,2.36479,3383.0,3382.5,0.1482095]
[1722254075501,2.3649,3382.8,3382.5,0.1482095]
[1722254075677,4.67509,3383.0,3382.5,0.1482095]
[1722254075678,2.36502,3382.7,3382.5,0.1482095]
[1722254076101,2.36504,3382.6,3382.5,0.1482095]
[1722254080398,4.72604,3382.6,3382.5,0.1482095]
[1722254080714,7.09108,3382.6,3382.5,0.1482095]
[1722254081334,2.36504,3382.6,3382.5,0.1482095]
[1722254081525,3.2244749,3382.6,3382.5,0.1482095]
[1722254081728,2.3649,3382.8,3382.5,0.1482095]
[1722254081938,2.36464,3383.2,3382.5,1.2192095]
[1722254082226,2.36464,3383.2,3382.7,1.071]
[1722254083030,3.271635,3383.4,3382.7,1.071]
[1722254084322,2.36427,3383.7,3382.9,1.071]
[1722254084533,2.36407,3384.0,3383.3,1.071]
[1722254084682,2.36407,3384.0,3383.3,3.5072]
[1722254085025,0.50369444,3383.9,3383.3,2.4362]
[1722254085387,0.50369444,3383.9,3383.4,0.05910761]
[1722254086881,4.71122,3384.5,3383.4,2.42352761]
[1722254087086,4.71122,3384.5,3383.4,0.05910761]
[1722254087484,2.3639,3384.3,3383.3,2.4362]
[1722254087711,2.36415,3383.9,3383.3,2.4362]
[1722254087896,2.36405,3384.1,3383.3,2.4362]
[1722254088589,2.36407,3384.0,3383.3,2.4362]
[1722254090722,2.36392,3384.2,3383.3,2.4362]
[1722254090919,2.36399,3384.1,3383.3,2.4362]
[1722254091131,2.36406,3384.0,3383.3,2.4362]
[1722254092310,2.36419,3383.9,3383.3,2.4362]
[1722254092510,2.36421,3383.8,3383.0,2.2683]
[1722254092956,2.36406,3384.0,3383.1,2.36469]
[1722254093272,2.36406,3384.0,3383.2,0.463299]
[1722254093430,2.36395,3384.2,3383.0,2.2683]
[1722254093431,2.36413,3383.9,3383.0,2.2683]
[1722254093968,2.36413,3383.9,3383.0,4.63304]
[1722254094647,2.36421,3383.8,3383.0,2.2683]
[1722254095412,2.36428,3383.7,3383.0,2.2683]
[1722254095865,0.716181,3383.7,3383.0,2.2683]
[1722254096164,2.36445,3383.5,3383.0,2.2683]
[1722254097063,2.36448,3383.4,3382.7,9.64757]
[1722254097256,2.3643,3383.7,3382.7,9.64757]
[1722254097257,2.3644,3383.6,3382.7,9.64757]
[1722254097548,2.36445,3383.5,3382.7,9.64757]
[1722254098059,2.3643,3383.7,3382.7,10.86365395]
[1722254099962,2.3643,3383.7,3382.7,13.22862395]
[1722254100157,2.36435,3383.6,3382.7,10.86365395]
[1722254100466,2.36441,3383.5,3382.7,10.86365395]
[1722254100761,2.36441,3383.5,3382.7,9.64757]
[1722254103026,2.36448,3383.4,3382.7,9.64757]
[1722254103667,2.3643,3383.7,3382.7,9.64757]
[1722254103975,2.36441,3383.5,3382.7,9.64757]
[1722254104826,2.36449,3383.4,3382.7,9.64757]
[1722254105027,2.36455,3383.3,3382.7,9.64757]
[1722254105336,2.36455,3383.3,3382.7,3.4787]
[1722254105598,0.47289,3383.4,3382.7,3.4787]
[1722254106566,0.47289,3383.4,3382.9,1.072]
[1722254107468,2.3643,3383.7,3383.0,2.4421]
[1722254108705,5.36415,3383.9,3383.1,1.072]
[1722254108861,2.36401,3384.1,3383.5,3.4987]
[1722254110861,2.36401,3384.1,3383.5,2.4267]
[1722254111067,1.0831163,3384.0,3383.5,2.4267]
[1722254111291,4.0831163,3384.0,3383.5,2.4267]
[1722254113167,2.36392,3384.2,3383.5,2.4267]
[1722254113168,3.0,3384.1,3383.5,2.4267]
[1722254113368,5.36392,3384.2,3383.5,2.4267]
[1722254116625,3.0,3384.2,3383.6,0.05910434]
[1722254116930,7.166823,3384.3,3383.6,0.05910434]
[1722254117430,3.730973,3384.3,3383.6,0.05910434]
[1722254117585,3.0,3384.3,3383.6,0.05910434]
[1722254118012,3.0,3384.3,3383.7,1.072]
[1722254118222,5.36367,3384.6,3383.8,2.4879]
[1722254118429,2.36371,3384.5,3383.8,2.4879]
[1722254118612,5.36371,3384.5,3383.8,2.54700065]
[1722254119039,2.36371,3384.5,3383.8,2.54700065]
[1722254120012,2.36379,3384.4,3383.8,2.54700065]
[1722254125765,2.36379,3384.4,3383.8,2.4879]
[1722254126171,3.0,3384.6,3383.9,1.072]
[1722254126460,2.36364,3384.6,3383.8,2.54699764]
[1722254126669,5.36356,3384.8,3383.9,1.072]
[1722254126967,5.36356,3384.8,3384.0,2.5500942]
[1722254127255,2.3636,3384.7,3384.0,2.491]
[1722254128739,2.36364,3384.6,3384.0,2.491]
[1722254129040,2.36364,3384.6,3384.0,2.55009424]
[1722254130234,3.0,3384.8,3384.0,2.491]
[1722254130235,2.36373,3384.5,3384.0,2.491]
[1722254130952,2.3636,3384.7,3384.0,2.55009427]
[1722254131166,2.36364,3384.6,3384.0,2.491]
[1722254131328,5.36355,3384.8,3384.1,0.05909428]
[1722254131750,5.36355,3384.8,3384.1,0.71755528]
[1722254132103,5.3635,3384.8,3384.1,0.71755528]
[1722254132393,5.3635,3384.8,3384.0,2.491]
[1722254132394,2.36364,3384.6,3384.0,2.491]
[1722254133501,2.36373,3384.5,3384.0,2.491]
[1722254139302,2.36385,3384.3,3384.0,2.491]
[1722254139507,2.36408,3384.0,3383.1,2.36468]
[1722254139721,2.36408,3384.0,3383.5,2.4142]
[1722254141927,2.36394,3384.2,3383.5,2.4142]
[1722254142139,2.36394,3384.2,3383.6,1.072]
[1722254142629,2.364,3384.1,3383.6,1.072]
[1722254144451,2.364,3384.1,3383.6,1.42062]
[1722254147785,2.364,3384.1,3383.6,0.34862]
[1722254147786,2.36406,3384.0,3383.6,0.34862]
[1722254148082,2.36406,3384.0,3383.5,2.4142]
[1722254148638,2.36398,3384.2,3383.5,2.4142]
[1722254149083,2.36399,3384.1,3383.5,2.4142]
[1722254149488,2.36399,3384.1,3383.6,1.072]
[1722254149858,2.36387,3384.3,3383.6,1.072]
[1722254150059,2.36393,3384.2,3383.6,1.072]
[1722254150510,2.36393,3384.2,3383.6,1.13110133]
[1722254150698,2.36393,3384.2,3383.6,1.48563146]
[1722254154063,2.36393,3384.2,3383.6,1.42653013]
[1722254155025,2.36402,3384.1,3383.6,1.42653013]
[1722254155223,2.36402,3384.1,3383.6,1.072]
[1722254162553,2.36378,3384.5,3384.0,1.072]
[1722254162754,2.36368,3384.6,3384.0,1.13109467]
[1722254162923,2.36377,3384.5,3384.0,1.13109467]
[1722254163114,2.3636,3384.7,3384.0,0.05909467]
[1722254163311,2.36376,3384.5,3384.0,0.05909467]
[1722254163913,4.72754,3384.5,3384.0,0.05909467]
[1722254164226,2.36378,3384.4,3384.0,0.05909467]
[1722254166046,2.36372,3384.5,3384.0,0.05909467]
[1722254167422,2.36379,3384.4,3384.0,0.05909467]
[1722254169125,2.36372,3384.5,3384.0,0.05909467]
[1722254172294,2.36372,3384.5,3384.0,1.13109467]
[1722254175544,2.36378,3384.4,3384.0,1.13109467]
[1722254175697,2.36378,3384.4,3384.0,0.05909467]
[1722254176354,2.900158,3384.4,3384.0,0.05909467]
[1722254178328,2.36378,3384.4,3383.9,2.2674]
[1722254180285,2.36398,3384.2,3383.9,2.2674]
[1722254180490,2.36398,3384.2,3383.6,1.072]
[1722254180929,2.36398,3384.2,3383.7,2.3692]
[1722254181228,4.72763,3384.4,3383.8,1.072]
[1722254181435,5.55939096,3384.7,3383.8,1.13110038]
[1722254181436,4.72737,3384.6,3383.8,1.13110038]
[1722254181639,2.36378,3384.4,3383.8,1.072]
[1722254182228,2.36366,3384.6,3383.9,0.05909654]
[1722254182613,4.72737,3384.6,3383.9,0.05909654]
[1722254183200,2.36373,3384.5,3383.9,0.05909654]
[1722254185439,3.6418145,3384.5,3383.9,0.05909654]
[1722254186010,2.3638,3384.4,3383.9,0.05909654]
[1722254186897,2.36366,3384.6,3383.9,0.05909654]
[1722254188741,2.36375,3384.5,3383.9,0.05909654]
[1722254194146,5.36363,3384.7,3384.0,2.418]
[1722254194472,2.36368,3384.6,3384.0,3.49]
[1722254195278,4.72739,3384.6,3384.0,3.49]
[1722254195621,2.36368,3384.6,3384.0,3.49]
[1722254195833,6.64164696,3384.7,3384.0,3.49]
[1722254196140,2.5596461,3384.9,3384.5,2.2979]
[1722254196350,2.3634,3385.0,3384.5,2.2979]
[1722254196351,3.0,3384.8,3384.5,2.2979]
[1722254196554,3.0,3384.9,3384.5,2.2979]
[1722254196773,4.9230461,3385.0,3384.5,2.2979]
[1722254196947,2.5596461,3385.2,3384.8,1.072]
[1722254197293,3.06037391,3385.5,3384.8,1.072]
[1722254197294,2.5596461,3385.5,3385.0,1.072]
[1722254197605,2.36297,3385.6,3385.2,1.072]
[1722254200592,2.36297,3385.6,3385.1,2.4651]
[1722254201971,3.0,3385.7,3385.2,1.072]
[1722254202274,2.36283,3385.8,3385.2,1.072]
[1722254204157,2.36295,3385.6,3385.1,2.4651]
[1722254204658,2.36309,3385.4,3385.1,2.4651]
[1722254205797,2.36309,3385.4,3384.8,3.3948]
[1722254206292,2.36309,3385.4,3384.8,4.699651]
[1722254208399,2.36313,3385.4,3384.8,4.699651]
[1722254208895,2.36315,3385.3,3384.8,3.627651]
[1722254209552,2.36302,3385.5,3384.8,3.627651]
[1722254209954,2.36302,3385.5,3384.8,4.699651]
[1722254210203,2.36302,3385.5,3384.9,0.98569296]
[1722254210496,2.36302,3385.5,3384.8,4.699651]
[1722254212072,2.36317,3385.3,3384.8,3.3948]
[1722254215473,2.36332,3385.1,3384.8,2.3228]
[1722254215677,2.36317,3385.3,3384.8,2.3228]
[1722254216198,2.36327,3385.2,3384.8,2.3228]
[1722254218918,2.3633,3385.1,3384.8,2.3228]
[1722254219414,2.835947,3385.1,3384.3,9.6169]
[1722254219597,2.3633,3385.1,3384.3,9.6169]
[1722254219801,2.3635,3384.8,3384.3,9.6169]
[1722254220276,2.36365,3384.6,3384.3,7.29]
[1722254222775,2.3635,3384.8,3384.3,7.29]
[1722254222776,2.36363,3384.7,3384.3,7.29]
[1722254222976,3.00718,3384.7,3384.3,7.29]
[1722254223475,2.36371,3384.5,3384.3,7.29]
[1722254223792,2.36371,3384.5,3384.1,2.4151]
[1722254226629,2.36393,3384.2,3383.8,19.41]
[1722254226784,2.36393,3384.2,3383.6,2.2846]
[1722254226785,2.3639,3384.3,3383.7,1.072]
[1722254230080,2.36361,3384.7,3384.0,2.2933]
[1722254230287,2.36364,3384.6,3384.0,2.2933]
[1722254230918,3.0,3384.7,3384.0,2.2933]
[1722254231225,3.0,3384.7,3384.1,1.072]
[1722254232115,4.80097,3384.8,3384.1,1.072]
[1722254235313,2.36365,3384.6,3384.0,2.2933]
[1722254242564,2.36375,3384.5,3384.0,2.2933]
[1722254245807,2.36375,3384.5,3383.8,7.29]
[1722254245973,2.36375,3384.5,3383.9,1.072634]
[1722254247892,7.7272,3384.7,3383.9,1.072634]
[1722254248099,5.36357,3384.7,3383.9,1.072634]
[1722254248422,5.36357,3384.7,3384.0,2.3026]
[1722254248572,2.36357,3384.7,3384.0,2.3026]
[1722254248773,3.0,3384.8,3384.0,3.7127424]
[1722254249170,5.36346,3384.9,3384.1,1.072]
[1722254249375,5.36346,3384.9,3384.2,2.4816]
[1722254249716,3.0,3385.0,3384.2,2.4816]
[1722254250050,2.36332,3385.1,3384.3,0.35593356]
[1722254250217,2.36337,3385.0,3384.3,0.35593356]
[1722254250418,5.36337,3385.0,3384.3,0.35593356]
[1722254250617,2.36337,3385.0,3384.3,0.35593356]
[1722254252707,2.36337,3385.0,3384.4,0.62734936]
[1722254255248,2.36337,3385.0,3384.5,2.4421]
[1722254255561,5.36328,3385.2,3384.5,2.4421]
[1722254255866,5.36328,3385.2,3384.5,3.5141]
[1722254259256,2.3633,3385.1,3384.5,2.4421]
[1722254259458,2.36337,3385.0,3384.5,2.4421]
[1722254260429,2.36343,3384.9,3384.5,2.4421]
[1722254263333,2.36358,3384.7,3384.2,9.6478]
[1722254265575,2.36358,3384.7,3384.2,2.3578]
[1722254274148,2.36346,3384.9,3384.3,1.072]
[1722254276017,3.4692986,3384.9,3384.2,2.3578]
[1722254277188,2.36353,3384.8,3384.2,2.3578]
[1722254283645,2.36359,3384.7,3384.0,2.3388]
[1722254283851,2.94687886,3384.7,3384.0,2.3388]
[1722254284024,3.4692986,3384.9,3384.1,1.072]
[1722254284225,2.36351,3384.8,3384.1,1.072]
[1722254285255,2.36351,3384.8,3384.3,1.072]
[1722254290873,4.84158,3384.7,3383.9,2.36413]
[1722254291173,4.84158,3384.7,3384.1,2.3952]
[1722254291369,2.478,3384.7,3384.1,2.3952]
[1722254292164,2.478,3384.7,3384.1,3.707333]
[1722254294201,2.478,3384.7,3384.2,1.072]
[1722254296065,2.36352,3384.8,3384.2,1.072]
[1722254296686,2.4514,3384.9,3384.2,1.072]
[1722254296880,2.3633,3385.1,3384.4,1.072]
[1722254297205,2.3633,3385.1,3384.4,2.02862865]
[1722254299026,10.38590491,3385.2,3384.4,2.02862865]
[1722254299199,2.36332,3385.1,3384.4,2.02862865]
[1722254299508,7.82503,3385.2,3384.4,2.02862865]
[1722254299671,2.36329,3385.1,3384.5,2.3101]
[1722254302308,2.36337,3385.0,3384.3,2.4977]
[1722254305414,2.36337,3385.0,3384.4,1.4535823]
[1722254306709,2.36337,3385.0,3384.3,2.4977]
[1722254308175,2.3422,3384.9,3384.2,8.362]
[1722254313110,2.3422,3384.9,3384.2,1.072]
[1722254314306,2.3422,3384.9,3384.2,3.49496098]
[1722254314515,5.4977,3385.2,3384.6,1.072]
[1722254314875,2.4977,3385.2,3384.6,1.072]
[1722254322042,3.0,3385.3,3384.6,7.45559384]
[1722254322337,5.3518,3385.4,3384.6,7.45559384]
[1722254324107,7.7149,3385.4,3384.6,5.09198384]
[1722254324301,8.27823962,3385.4,3384.6,3.53688615]
[1722254324533,2.36316,3385.3,3384.6,3.4778]
[1722254334649,5.3518,3385.4,3384.6,3.53688365]
[1722254334925,7.71489,3385.4,3384.6,3.53688365]
[1722254335861,2.36317,3385.3,3384.6,3.53688365]
[1722254336021,2.36317,3385.3,3384.6,3.4778]
[1722254336446,2.4121,3385.0,3384.3,9.5714]
[1722254336674,2.4121,3385.0,3384.3,10.6434]
[1722254336873,2.4121,3385.0,3384.3,3.3534]
[1722254337430,2.4121,3385.0,3384.4,0.05908756]
[1722254339465,2.4121,3385.0,3384.5,1.072]
[1722254341167,2.36331,3385.1,3384.5,1.072]
[1722254344468,3.74956051,3385.1,3384.5,1.072]
[1722254350785,2.36331,3385.1,3384.5,1.072]
[1722254352289,2.36317,3385.3,3384.6,2.4379]
[1722254353145,2.36322,3385.2,3384.6,2.4379]
[1722254357164,10.28620256,3385.4,3384.6,2.4379]
[1722254357365,2.36317,3385.3,3384.6,2.4379]
[1722254359376,3.62499326,3385.3,3384.6,2.4379]
[1722254360349,2.3633,3385.1,3384.6,2.4379]
[1722254361795,3.5571,3384.8,3384.0,7.29]
[1722254361998,2.36384,3384.4,3384.0,7.29]
[1722254362298,2.36384,3384.4,3383.6,12.6784]
[1722254362534,2.36384,3384.4,3383.7,1.611476]
[1722254362707,2.36384,3384.4,3383.7,4.611476]
[1722254362993,2.36388,3384.3,3383.7,4.611476]
[1722254363200,4.82018,3384.3,3383.7,4.611476]
[1722254363570,2.4563,3384.3,3383.7,4.611476]
[1722254363758,2.36372,3384.5,3383.8,1.22723396]
[1722254365456,2.36372,3384.5,3383.8,2.29923396]
[1722254368592,4.6992,3384.6,3383.8,2.29923396]
[1722254368817,4.6992,3384.6,3383.8,1.072]
[1722254369223,2.36372,3384.5,3383.8,1.072]
[1722254373096,2.36379,3384.4,3383.8,1.072]
[1722254373298,1.072,3384.4,3383.6,2.3884]
[1722254373500,2.3644,3383.6,3383.0,2.3945]
[1722254373697,2.36425,3383.8,3383.0,2.3945]
[1722254373940,2.36425,3383.8,3383.0,3.4665]
[1722254375096,2.36427,3383.7,3383.0,3.4665]
[1722254375296,1.072,3383.6,3382.6,2.3506]
[1722254375510,2.36457,3383.3,3382.6,2.3506]
[1722254375837,2.36445,3383.5,3382.6,3.4226]
[1722254376044,2.967252,3383.5,3382.6,3.4226]
[1722254376247,2.3645,3383.4,3382.6,3.4226]
[1722254379152,2.36456,3383.3,3382.6,2.3506]
[1722254379469,2.3645,3383.4,3382.6,3.4226]
[1722254380162,2.36456,3383.3,3382.6,3.4226]
[1722254380482,0.602802,3383.5,3382.6,3.4226]
[1722254381333,0.602802,3383.5,3382.6,5.78763]
[1722254381334,2.36449,3383.4,3382.6,5.78763]
[1722254381657,2.36451,3383.4,3382.6,3.4226]
[1722254384962,2.36451,3383.4,3382.6,5.78764]
[1722254385260,2.36451,3383.4,3382.7,0.59358495]
[1722254386327,2.36451,3383.4,3382.6,5.78764]
[1722254387529,2.36451,3383.4,3382.6,3.4226]
[1722254387728,2.36459,3383.3,3382.6,3.4226]
[1722254388631,2.36468,3383.2,3382.6,3.4226]
[1722254388835,2.837599,3383.2,3382.6,3.4226]
[1722254389181,2.36468,3383.2,3382.6,2.3506]
[1722254389329,2.36481,3383.0,3382.5,0.1482095]
[1722254389674,2.36484,3382.9,3382.5,0.1482095]
[1722254390723,4.68904,3383.1,3382.5,0.1482095]
[1722254390925,2.940844,3383.1,3382.5,0.1482095]
[1722254391374,2.36476,3383.0,3382.6,2.2801]
[1722254391526,2.36459,3383.3,3382.6,3.3521]
[1722254391976,2.36463,3383.2,3382.6,3.3521]
[1722254392271,3.0,3383.4,3382.6,3.94455899]
[1722254392272,5.36454,3383.4,3382.6,3.94455899]
[1722254392424,2.36457,3383.3,3382.6,3.94455899]
[1722254393052,2.36457,3383.3,3382.8,1.072]
[1722254394461,2.36457,3383.3,3382.6,3.94455899]
[1722254394674,2.36473,3383.1,3382.6,3.3521]
[1722254394860,2.36457,3383.3,3382.6,3.3521]
[1722254395188,2.36457,3383.3,3382.6,3.93864895]
[1722254395351,2.36457,3383.3,3382.6,3.3521]
[1722254396549,2.36432,3383.7,3382.8,3.43688]
[1722254396855,2.482,3383.9,3383.3,2.3517]
[1722254396856,2.36413,3383.9,3383.3,2.3517]
[1722254399448,2.3642,3383.8,3383.3,2.3517]
[1722254399850,1.072,3383.7,3383.1,2.4192]
[1722254400284,2.36439,3383.6,3383.1,2.4192]
[1722254401493,2.36441,3383.5,3383.1,2.4192]
[1722254401655,2.36448,3383.4,3382.8,9.549]
[1722254401856,2.36448,3383.4,3382.8,10.62592095]
[1722254402468,2.36416,3383.9,3383.1,1.072]
[1722254402672,2.36387,3384.3,3383.6,2.4319]
[1722254402907,2.3636,3384.7,3383.9,1.072]
[1722254403058,2.3636,3384.7,3384.0,2.4319]
[1722254403059,2.36376,3384.5,3384.0,2.4319]
[1722254403479,2.36359,3384.7,3384.1,1.072]
[1722254403693,2.36358,3384.7,3384.1,1.072]
[1722254403909,2.36365,3384.6,3384.1,1.072]
[1722254404195,2.36365,3384.6,3384.0,2.4319]
[1722254404196,2.36374,3384.5,3384.0,2.4319]
[1722254404791,2.36379,3384.4,3384.0,2.4319]
[1722254404975,2.36386,3384.3,3384.0,2.4319]
[1722254405174,2.36386,3384.3,3383.7,2.4244]
[1722254405373,2.36386,3384.3,3383.7,2.66684]
[1722254405785,2.36374,3384.5,3383.7,2.66684]
[1722254405983,2.36383,3384.4,3383.7,2.66684]
[1722254406168,2.36387,3384.3,3383.7,2.4244]
[1722254406391,2.36411,3384.0,3383.3,9.7845]
[1722254406727,2.36411,3384.0,3383.3,7.29]
[1722254406728,2.36421,3383.8,3383.3,7.29]
[1722254406887,2.36438,3383.6,3383.3,7.29]
[1722254407087,2.36438,3383.6,3383.0,14.6145]
[1722254407088,2.36438,3383.6,3383.0,2.4945]
[1722254407428,2.36421,3383.8,3383.0,2.4945]
[1722254407579,2.36428,3383.7,3383.0,2.4945]
[1722254409490,2.36442,3383.5,3383.0,2.4945]
[1722254409828,2.36428,3383.7,3383.0,2.4945]
[1722254411300,2.36434,3383.6,3383.0,2.4945]
[1722254411721,2.36415,3383.9,3383.0,2.4945]
[1722254412330,2.36406,3384.0,3383.1,2.42374302]
[1722254412529,2.36406,3384.0,3383.2,2.36461]
[1722254412727,4.72791,3384.2,3383.2,2.36462]
[1722254412886,2.364,3384.1,3383.2,2.36462]
[1722254413090,2.3638,3384.4,3383.3,2.4557088]
[1722254413831,2.36397,3384.2,3383.3,4.8202488]
[1722254414014,2.36397,3384.2,3383.3,6.17641558]
[1722254414231,3.0,3384.3,3383.5,2.3644]
[1722254414397,2.3638,3384.4,3383.5,2.3644]
[1722254414594,2.36374,3384.5,3383.6,2.4671]
[1722254414916,2.36352,3384.8,3383.8,2.3642]
[1722254415169,2.3636,3384.7,3383.8,2.423298]
[1722254415296,2.36365,3384.6,3383.8,2.423298]
[1722254416455,2.36358,3384.7,3383.8,3.1487718]
[1722254416752,5.3635,3384.8,3384.0,2.2565]
[1722254416907,2.67222552,3385.4,3384.2,2.36387]
[1722254417091,5.42367391,3385.1,3384.2,2.36387]
[1722254417293,5.42367391,3385.1,3384.3,0.05909178]
[1722254417739,2.36337,3385.0,3384.3,0.05909178]
[1722254418728,3.06037391,3385.1,3384.4,4.70912]
[1722254418936,3.06037391,3385.1,3384.5,0.05908495]
[1722254419291,3.06037391,3385.1,3384.6,2.36363]
[1722254420745,3.06037391,3385.1,3384.4,4.70912]
[1722254421039,3.06037391,3385.1,3384.5,2.3637]
[1722254421471,3.06037391,3385.1,3384.4,4.70917]
[1722254421632,3.06037391,3385.1,3384.4,6.145477]
[1722254423058,3.06037391,3385.1,3384.6,2.36363]
[1722254423356,3.06037391,3385.1,3384.5,2.36371]
[1722254424261,4.74469,3385.4,3384.5,2.36371]
[1722254425118,2.3816,3385.4,3384.6,2.36359]
[1722254425561,2.36294,3385.7,3384.8,4.8427]
[1722254426018,2.36295,3385.6,3384.8,4.8427]
[1722254426717,7.64703,3385.8,3384.8,4.8427]
[1722254426922,2.36297,3385.6,3384.8,2.4792]
[1722254427261,3.36397,3385.6,3384.8,2.4792]
[1722254427410,3.0,3385.5,3384.8,2.4792]
[1722254427612,3.0,3385.8,3384.9,0.0590803]
[1722254427937,5.36271,3386.0,3385.1,2.36329]
[1722254428270,2.3626,3386.1,3385.2,4.99278946]
[1722254428410,2.3626,3386.1,3385.3,0.05907174]